Cogmind - Beta 16.1 @@@ ROGUE MODE // 2026.02.09 @ 23:01:00 Player: Megaknight51 Result: Destroyed by XK-A7Y(R) with Subdweller Laser Performance ------------- Evolutions (0) 0 Regions Visited (2) 400 Robots Destroyed (22) 110 Value Destroyed (534) 534 Prototype IDs (0) 0 Alien Tech Used (0) 0 Bonus (-30) -30 TOTAL SCORE: 1014 Bonus ------- Friendly Fire -30 Cogmind --------- Core Integrity 0/250 Matter 251/300 Energy 247/250 System Corruption 4% Temperature Cool (6) Movement Treading (480) Ox4 Location -10/Subcaves Parts ------- > --- POWER (1) -------- Ion Engine > --- PROPULSION (2) --- Light Treads > --- UTILITY (2) ------ Huge Storage Unit Makeshift Light Armor Plating > --- WEAPON (2) ------- Battle Cannon Grenade Launcher > --- INVENTORY (25) --- Ion Engine Ion Engine Light Nuclear Core Makeshift Power Source High-capacity Matter Pod (189) Structural Scanner Subdweller Optics Sensor Array Signal Interpreter Improved Terrain Scanner Seismic Detector Makeshift Light Armor Plating Subdweller Laser Subdweller Beam Cannon Assault Rifle Light Assault Rifle Barrage Gun Mining Laser Flamer Ripper Scrap Shield Fragment (46) Scrap Shield Fragment (46) Scrap Shield Fragment (22) Scrap Shield Fragment (11) Peak State ------------ > --- POWER ------------ Ion Engine > --- PROPULSION ------- Light Treads Light Treads > --- UTILITY ---------- Huge Storage Unit Makeshift Light Armor Plating > --- WEAPON ----------- Assault Rifle Battle Cannon > --- INVENTORY -------- Ion Engine Ion Engine Light Nuclear Core Makeshift Power Source Light Treads High-capacity Matter Pod Structural Scanner Subdweller Optics Sensor Array Signal Interpreter Improved Terrain Scanner Seismic Detector Subdweller Beam Cannon Light Assault Rifle Barrage Gun Grenade Launcher Grenade Launcher Mining Laser Flamer Scrap Shield Fragment Scrap Shield Fragment Scrap Shield Fragment Scrap Shield Fragment Scrap Shield Fragment [Rating: 15] Favorites ----------- Power Ion Engine Engine Ion Engine Propulsion Light Treads Treads Light Treads Utility Huge Storage Unit Device Structural Scanner Storage Huge Storage Unit Protection Makeshift Light Armor Plating Weapon Assault Rifle Energy Gun Subdweller Laser Ballistic Gun Assault Rifle Ballistic Cannon Battle Cannon Launcher Grenade Launcher Special Weapon Mining Laser Build | -11 -10 -10 ------- Run | Yrd Mat Sub Slots Evolved . | . . . Power . | . . . Propulsion . | . . . Utility . | . . . Weapon . | . . . Parts Attached 18 | 6 4 8 Power 1 | 1 . . Engine 1 | 1 . . Core . | . . . Reactor . | . . . Propulsion 3 | 2 . 1 Treads 3 | 2 . 1 Leg . | . . . Wheel . | . . . Hover . | . . . Flight . | . . . Utility 5 | 1 2 2 Device 2 | . 1 1 Storage 2 | 1 1 . Processor . | . . . Hackware . | . . . Protection 1 | . . 1 Artifact . | . . . Weapon 9 | 2 2 5 Energy Gun 1 | . . 1 Energy Cannon . | . . . Ballistic Gun 3 | 2 1 . Ballistic Cannon 2 | . 1 1 Launcher 2 | . . 2 Special Weapon 1 | . . 1 Impact Weapon . | . . . Slashing Weapon . | . . . Piercing Weapon . | . . . Special Melee Weapon . | . . . Unidentified Prototypes . | . . . Parts Lost 4 | . 1 3 Power . | . . . Propulsion 2 | . . 2 Utility . | . . . Weapon 2 | . 1 1 Highest Loss Streak 1 | . 1 1 To Critical Strikes . | . . . Average Backups 14 | 2 10 15 Power 3 | . 2 3 Propulsion . | . . . Utility 5 | . 4 6 Weapon 4 | . 3 4 Tool/Special . | . . . Unused Backups 14 | . . 14 Power 4 | . . 4 Propulsion . | . . . Utility 6 | . . 6 Weapon 4 | . . 4 Tool/Special . | . . . Average Slot Usage (%) 89 | . 93 88 Engine 14 | . 14 14 Treads 26 | . 28 25 Device 3 | . 8 1 Storage 14 | . 14 14 Protection 2 | . . 3 Ballistic Gun 17 | . 18 17 Ballistic Cannon 5 | . 9 3 Launcher 1 | . . 2 Special Weapon 2 | . . 3 Peak Build Rating 15 | 6 8 15 Average Rating 9 | 5 7 10 On Entrance 4 | . 6 7 Avg Prop Armor Cover (%) . | . . . Naked Turns . | . . . Heaviest Build 96 | 13 91 96 Greatest Support 40 | 40 40 40 Greatest Overweight (x) 31 | 2 2 31 Average Overweight (x) 1 | . 1 2 Largest Inventory Capacity 25 | 8 25 25 Average Capacity 23 | 7 20 25 Most Carried 25 | 4 13 25 Average Carried 15 | 2 10 18 Final Capacity 25 | 8 25 25 Final Carried 24 | 4 13 24 Class Distribution -------------------- 100% | Mutant Dominant Class ---------------- Mutant | -10/Materials Mutant | -10/Subcaves Resources | -11 -10 -10 ----------- Run | Yrd Mat Sub Matter Collected 1128 | 288 305 535 Remotely . | . . . Salvage Created 696 | 127 293 276 Parts 52 | 13 20 19 Haulers Intercepted 2 | . 2 . Recyclers Shooed 4 | 1 3 . Parts Field Recycled . | . . . Retrieved Matter . | . . . Parts Self-Destructed 15 | . . 15 Prevented . | . . . Parts Restored . | . . . Kills | -11 -10 -10 ------- Run | Yrd Mat Sub Combat Hostiles Destroyed 16 | . 9 7 Guns 7 | . 5 2 Cannons 5 | . 4 1 AOE 4 | . . 4 Classes Destroyed 7 | 2 3 2 Tunneler 3 | 3 . . Hauler 2 | . 2 . Recycler 1 | 1 . . Swarmer 5 | . 5 . Grunt 6 | . 4 2 Subdweller 5 | . . 5 Scientist 1 | . . 1 Best Kill Streak 5 | 2 5 2 Combat Bots Only 5 | . 5 2 Max Kills in Single Turn 1 | 1 1 1 Gunslinging . | . . . Exploded 1 | . . 1 Melee . | . . . Uniques/NPCs Destroyed . | . . . Combat | -11 -10 -10 -------- Run | Yrd Mat Sub Hostile Shots Fired 73 | . 32 41 Missed 29 | . 11 18 Hits 44 | . 21 23 Projectile 44 | . 21 23 AOE 1 | . 1 . Damage Taken 827 | . 273 554 Core 264 | . 95 169 Absorbed by Shields . | . . . Core Remaining (%) 100 | 100 . . Volleys Fired 63 | 7 31 25 Largest 2 | 2 2 2 Hottest 120 | 40 50 120 Shots Fired 122 | 14 58 50 Gun 73 | 14 34 25 Cannon 35 | . 24 11 Launcher 10 | . . 10 Special 4 | . . 4 Kinetic 107 | 14 58 35 Thermal 5 | . . 5 Explosive 10 | . . 10 Electromagnetic . | . . . Robot Hit Streak 15 | 4 15 9 Robot Miss Streak 7 | 1 7 1 Penetration Max . | . . . Secondary Targets 1 | . . 1 Max Gunslinging Chain 1 | . . 1 Shots Hit Robots 66 | 8 37 21 Core Hits 35 | 6 16 13 Critical Kills . | . . . Critical Parts Destroyed 1 | . 1 . Critical Strikes 2 | . 2 . Destroy 1 | . 1 . Blast 1 | . 1 . Melee Attacks . | . . . Impact . | . . . Slashing . | . . . Piercing . | . . . Sneak Attacks . | . . . Combat Hostiles . | . . . Follow-up Attacks . | . . . Damage Inflicted 1171 | 93 549 529 Guns 498 | 93 269 136 Cannons 356 | . 271 85 Explosions 308 | . . 308 Melee . | . . . Ramming 9 | . 9 . Kinetic 854 | 93 540 221 Thermal . | . . . Explosive 308 | . . 308 Electromagnetic . | . . . Impact . | . . . Slashing . | . . . Piercing . | . . . Highest Corruption 4 | . 4 4 Average Corruption 3 | . 3 4 Corruption Purged . | . . . Corruption Blocked . | . . . Effects 63 | . 3 60 Message Errors 13 | . 1 12 Matter Fused 17 | . 2 15 Heat Flow Errors 9 | . . 9 Energy Discharges 6 | . . 6 Data Loss (minor) 9 | . . 9 Data Loss (major) 5 | . . 5 Misfires 3 | . . 3 Alerts 1 | . . 1 Overload Shots . | . . . Overflow Damage 42 | . . 42 Projectiles . | . . . Explosions 42 | . . 42 Melee . | . . . Knockbacks 7 | . 7 . Impact 1 | . 1 . Kinetic 6 | . 6 . Secondary . | . . . Self-Inflicted Damage 78 | . . 78 Shots 3 | . . 3 Rammed 4 | . 4 . Targets Rammed 4 | . 4 . Kicked . | . . . Crushed . | . . . Highest Temperature 258 | . 16 258 Average Temperature 80 | . 7 111 Received Heat Transfer 225 | . 99 126 Siege Activations . | . . . Martial Activations . | . . . Shielding Activations . | . . . Robots Disrupted . | . . . Combat Hostiles . | . . . Robots Corrupted . | . . . Combat Hostiles . | . . . Parts Fried . | . . . Impact Corruptions . | . . . Robots Melted . | . . . Combat Hostiles . | . . . Parts Melted . | . . . Heat Transferred . | . . . Parts Sabotaged . | . . . Parts Stolen . | . . . Parts Stripped . | . . . Power Chain Reactions . | . . . Alert | -11 -10 -10 ------- Run | Yrd Mat Sub Maximum Alert Level . | . . . Low Security (%) 100 | 100 100 . Level 1 . | . . . Level 2 . | . . . Level 3 . | . . . Level 4 . | . . . Level 5 . | . . . High Security . | . . . Max Security . | . . . Peak Influence 98 | 10 98 . Initial . | . . . Average 16 | 1 18 . Influence Increases 331 | 20 261 50 Destroy 0b10 Robot/C 220 | . 180 40 Destroy 0b10 Robot/NC 30 | 20 10 . Destroy Leader 54 | . 44 10 Successful Hack 12 | . 12 . Disable Machine 15 | . 15 . Influence Decreases 331 | 20 217 94 Entered New Map 22 | . . 22 Time Decay 299 | 20 207 72 Lost Part 10 | . 10 . Squads Dispatched . | . . . Investigation . | . . . Extermination . | . . . Reinforcement . | . . . Assault . | . . . Garrison . | . . . Intercept . | . . . Searches Triggered . | . . . Construction Impeded . | . . . Haulers Reinforced . | . . . Active Scanning Responses . | . . . Cargo Convoy Interrupts . | . . . Stealth | -11 -10 -10 --------- Run | Yrd Mat Sub Distress Signals . | . . . Communications Jammed . | . . . Distress Signals . | . . . Times Spotted 25 | . 16 9 Peak Tracking Total 4 | . 4 2 Tactical Retreats . | . . . Traps | -11 -10 -10 ------- Run | Yrd Mat Sub Traps Triggered 6 | . 4 2 Indirectly . | . . . Trap Hack Attempts . | . . . Triggered . | . . . Disarmed . | . . . Reprogrammed . | . . . Reused . | . . . Traps Extracted . | . . . Installed . | . . . Triggered . | . . . Machines | -11 -10 -10 ---------- Run | Yrd Mat Sub Machines Disabled 1 | . 1 . Max in Single Turn 1 | . 1 . Machines Repaired . | . . . Machines Dismantled . | . . . Machines Sabotaged . | . . . Overloaded Fab Kills . | . . . Hacking | -11 -10 -10 --------- Run | Yrd Mat Sub Machines Accessed 4 | . 4 . Terminals 4 | . 4 . Fabricators . | . . . Repair Stations . | . . . Recycling Units . | . . . Scanalyzers . | . . . Garrison Access . | . . . Total Hacks 11 | . 11 . Successful 4 | . 4 . Failed 6 | . 6 . Catastrophic 1 | . 1 . Database Lockouts 1 | . 1 . Manual 11 | . 11 . Terminals 11 | . 11 . Fabricators . | . . . Repair Stations . | . . . Recycling Units . | . . . Scanalyzers . | . . . Garrison Access . | . . . Terminal Hacks 4 | . 4 . Robot Analysis 4 | . 4 . Fabricator Hacks . | . . . Repair Station Hacks . | . . . Recycling Unit Hacks . | . . . Scanalyzer . | . . . Garrison Access Hacks . | . . . Unauthorized Hacks . | . . . Terminals . | . . . Fabricators . | . . . Repair Stations . | . . . Recycling Units . | . . . Scanalyzers . | . . . Garrison Access . | . . . Data Cores Recovered . | . . . Used . | . . . Hacking Detections 4 | . 4 . Full Trace Events . | . . . Feedback Events . | . . . Feedback Blocked . | . . . Robot Schematics Acquired . | . . . Robots Built . | . . . Authchips . | . . . Time . | . . . Total Robot Build Rating . | . . . Part Schematics Acquired . | . . . Parts Built . | . . . Authchips . | . . . Time . | . . . Total Part Build Rating . | . . . Part Studies Acquired . | . . . Parts Repaired . | . . . Time . | . . . Parts Recycled . | . . . Recycled Matter . | . . . Retrieved Matter . | . . . Retrieved Components . | . . . Parts Scanalyzed . | . . . Part Schematics Acquired . | . . . Parts Damaged . | . . . Bothacking | -11 -10 -10 ------------ Run | Yrd Mat Sub Used RIF Installer . | . . . Robots Hacked . | . . . Non-combat . | . . . Combat . | . . . Robot Hacks Applied . | . . . Relay Couplers Released . | . . . Fabnet Peak Effective % . | . . . Robots Rewired . | . . . Allies Hacked . | . . . Hacks Repelled . | . . . Allies | -11 -10 -10 -------- Run | Yrd Mat Sub Total Allies . | . . . Largest Group . | . . . Highest-Rated Group . | . . . Highest-Rated Ally . | . . . Total Orders . | . . . Ally Attacks . | . . . Total Damage . | . . . Kills . | . . . Allies Corrupted . | . . . Allies Melted . | . . . Intel | -11 -10 -10 ------- Run | Yrd Mat Sub Active Infowar (turns) 952 | . 631 321 Terrain 321 | . . 321 Structural 631 | . 631 . Robot Analysis Total 4 | . 4 . Derelict Logs Recovered 1 | . . 1 Drone Launches . | . . . Drone Recoveries . | . . . Exploration | -11 -10 -10 ------------- Run | Yrd Mat Sub Turns Passed 4394 | 134 1096 3164 Spaces Moved 1323 | 71 387 865 Core 12 | 11 . 1 Treads 1311 | 60 387 864 Legs . | . . . Wheels . | . . . Hover . | . . . Flight . | . . . Fastest Speed 50 | 50 160 320 Average Speed 302 | 144 250 339 Slowest Speed 1600 | 160 320 1600 Overloaded Moves . | . . . Propulsion Burnouts . | . . . Robots Hopped . | . . . Potential Cave-ins . | . . . Cave-ins Triggered . | . . . Exploration Rate (%) 42 | 4 70 54 Regions Visited 2 Branch Regions 1 Pre-discovered Areas 1 | . . 1 Known Exits Taken . | . . . Unknown Exits Taken 2 | 1 1 . Scrap Searched 6 | . . 6 Spaces Dug . | . . . Terrain Destroyed 56 | . . 56 Melee . | . . . Projectile 1 | . . 1 AOE 55 | . . 55 Terrain Rammed . | . . . Walls Destroyed . | . . . Machines Disabled . | . . . Actions | -11 -10 -10 --------- Run | Yrd Mat Sub Total 1582 | 87 455 1040 Wait 132 | . 13 119 Move 1321 | 70 386 865 Hop . | . . . Pick Up 27 | 4 9 14 Fast Attach 12 | 6 4 2 Attach 5 | . 1 4 Detach 4 | . 1 3 Swap 8 | . 2 6 Drop 4 | . 2 2 Fire 63 | 7 31 25 Melee . | . . . Ram . | . . . Kick . | . . . Crush 4 | . 4 . Escape Stasis . | . . . Rewire 2 | . 2 . Trap . | . . . Miscellaneous . | . . . Route ------- -11/Scrapyard -10/Materials (discovered 3 exits: [*Mat] / [*Min] / [*Sub]) -10/Subcaves (discovered 2 exits: [*Mat x2]) History --------- Turn | Location | Event 8 | -11/Scrapyard | Discovered new exit (range 15) 135 | -11/Scrapyard | Entered Materials 303 | -10/Materials | Build established: Mutant 679 | -10/Materials | Central database locked down 777 | -10/Materials | Discovered new exit (range 12) 1108 | -10/Materials | Discovered new exit (range 7) 1198 | -10/Materials | Discovered new exit (range 8) 1231 | -10/Materials | Entered Subcaves 1232 | -10/Subcaves | Approached by a straggling Scientist 1398 | -10/Subcaves | Learned Materials emergency access door positions 2691 | -10/Subcaves | Learned location of Zion (-7) 2691 | -10/Subcaves | Met a Zionite searching for "candidates" 3380 | -10/Subcaves | Discovered new exit (range 16) 3455 | -10/Subcaves | Disturbed a concealed Subdweller 3457 | -10/Subcaves | Core integrity fell below 50% 3591 | -10/Subcaves | Discovered new exit (range 14) 4100 | -10/Subcaves | Core integrity fell below 20% 4395 | -10/Subcaves | Destroyed by XK-A7Y(R) with Subdweller Laser Last Messages --------------- 04117_ The unstable cave ceiling collapses. 04117_ KZ-RTH(R) destroyed. 04120_ K9-LCT(R) destroyed. 04126_ Subatomizers dissect the Sub. Power Source. 04134_ System corrupted: Matter fused (-9). 04136_ Subatomizers dissect the Sub. Power Source. 04155_ The unstable cave ceiling collapses. 04174_ Acquired 26 matter. 04175_ Subatomizers dissect the Sub. Power Source. 04183_ Acquired 32 matter. 04185_ System corrupted: Substantial component data lost. 04200_ Subatomizers dissect the Sub. Power Source. 04210_ System corrupted: Energy discharge (-87). 04222_ Subatomizers dissect the Sub. Power Source. 04234_ Subatomizers dissect the Sub. Power Source, destroying it. 04248_ Subatomizers dissect the Sub. Monowheel. 04301_ L|Y=3NPDY8 FJ%JGQ=R0 04318_ System corrupted: Heat flow error (+194). 04363_ System corrupted: Component data lost. 04394_ System corrupted: Matter fused (-8). Map ----- +----------------------------------------------------+ | ?????????????????????????????????????????????????? | | ?????????????????????????????????????????????????? | | ?????????????????????????????????????????????????? | | ?????????????????????????????????????????????????? | | ?????????????????????????????????????????????????? | | ?????????????????????????????????????????????????? | | ?????????????????????????????????????????????????? | | ?????????????????????????????????????????????????? | | ?????????????????????????????????????????????????? | | ?????????????????????????????????????????????????? | | ?????????????????????????????????????????????????? | | ?????????????????????????????????????????????????? | | ?????????????????????????????????????????????????? | | ?????????????????????????????????????????????????? | | ??????????????????#??????????????????????????????? | | ??????????????????# ?????????????????????????????? | | ??????????????????# ??????##?????????????????????? | | ??????????????????# ???## ##???????? ???????????? | | ??????????????????# #### ######## ??????????? | | ???????????? ????# #??????????? | | ???????????? #### #??????????? | | ???????????# # #??????????? | | ????????????# ##?????????? | | ?????????????# #?????????? | | ?????????????????# RR ????????? | | ??????????????????# @ #??????????? | | ?????????????????## ### #??????????? | | ?????????? #?? #???#??????? | | ?????????? #### ## ### #??? #??????? | | ??????????? ?????# ##### ??# ?????? | | ??????????? ?????### #??# #??# ??????? | | ????????????# ??????## #??# #?# #???????? | | ????????????????????# #### ## ###?????? | | ????????????????????## ## #?????? | | ?????????????????????# #??????? | | ?????????????????????# #?????????? | | ?????????????????????# ##??????????? | | ?????????????????????# ##???????????? | | ?????????????????????## ####??????????### | | ??????????????????????## ##### #??###??????### | | ???????????????????????#####??## #??# ?????# | | ??????????????????????????##### #??# ##### | | ?????????????????????????## # #### ## # | | ?????????????????????????# # | | ????????????????????????## # | | ???????????????????????## # ## # # | | ??????????????????????## ######??## # | | ???????????????####??## ##????????## # | | ??????????????## ??## ###????????## ## | | ?????????????## ??# ## ??????##?## | +----------------------------------------------------+ Best States ------------- Heat Dissipation 25 Energy Generation 10 Energy Capacity 250 Matter Stores 300 Matter Capacity 300 Sight Range 16 Terrain Scan Range 16 Terrain Scan Density 10 Armor Coverage 100 Evasion (%) 40 Recoil Reduction 2 Item Schematics ----------------- None Robot Schematics ------------------ None Fabricated ------------ Nothing Repaired ---------- Nothing Studied --------- None Alien Tech Used ----------------- None Achievements -------------- None Challenges ------------ None Game ------ Seed CompactPoweredThruster Manual? 0 Play Time 00:14:08 Cumulative 58.0 hours Start 2026.02.09 @ 22:49:33 End 2026.02.09 @ 23:01:00 Sessions 1 Manual Loads 0 Difficulty Rogue Special Mode None Game No. 116 Rogue 116 Adventurer 0 Explorer 0 Win Type - Total 0 Types 0/0/0/0/0/0/0/0/0/0 Lore% 35 Gallery% 30 Achievement% 28 Wizard Run 0 Options --------- Layout 0 ASCII 0 Keyboard 1 Movement Arrows Keybinds 0 Fullscreen 1 Font 18/Smallcaps Map View 38x25 Zoom Use 90% Tactical HUD 1 Map Filters NONE Filters NONE Steam 1 RUN: 0710b9a3-6c79-41d1-9ba9-9bb4487f58c0